[Event "AUT Bundesliga 2019-20"]
[Site "Linz"]
[Date "2019.10.10"]
[Round "1.1"]
[White "Hera, Imre Jr."]
[Black "Jovanovic, Dusan D"]
[Result "1-0"]
[ECO "A00"]
[WhiteElo "2610"]
[BlackElo "2418"]
[Annotator "ChessBase"]
[PlyCount "77"]
[EventDate "2019.10.10"]
[EventType "team-tourn"]
[EventCountry "AUT"]
[SourceTitle "playchess.com"]
[Source "ChessBase"]
[SourceQuality "1"]
[TimeControl "40/5400+30:1800+30"]

1. g3 {[%emt 0:00:00]} Nf6 {[%emt 0:00:00]} 2. Bg2 {[%emt 0:00:00]} e6 {[%emt 0:01:19]} 3. d3 {[%emt 0:04:18]} d5 {[%emt 0:05:00]} 4. Nd2 {[%emt 0:00:37]} Nbd7 {[%emt 0:01:32]} 5. e4 {[%emt 0:03:56]} dxe4 {[%emt 0:02:53]} 6. dxe4 {[%emt 0:00:09]} Bc5 {[%emt 0:00:51]} 7. Ngf3 {[%emt 0:00:56]} e5 {[%emt 0:03:07]} 8. O-O {[%emt 0:00:24]} O-O {[%emt 0:00:15]} 9. Nh4 {[%emt 0:13:39]} g6 {[%emt 0:12:18]} 10. Nb3 {[%emt 0:01:31]} Be7 {[%emt 0:03:23]} 11. Qe2 {[%emt 0:01:29]} Ne8 {[%emt 0:06:11]} 12. Nf3 {[%emt 0:01:41]} Bd6 {[%emt 0:05:51]} 13. Na5 {[%emt 0:07:43]} Nb6 {[%emt 0:04:03]} 14. Bh6 {[%emt 0:01:02]} Ng7 {[%emt 0:00:21]} 15. Nd2 {[%emt 0:01:54]} Re8 {[%emt 0:07:43]} 16. Rad1 {[%emt 0:03:17]} Bf8 {[%emt 0:03:04]} 17. c3 {[%emt 0:05:38]} c6 {[%emt 0:02:21]} 18. b4 {[%emt 0:13:34]} Qc7 {[%emt 0:02:01]} 19. f4 {[%emt 0:03:11]} exf4 {[%emt 0:05:12]} 20. gxf4 {[%emt 0:03:43]} Be6 {[%emt 0:07:49]} 21. a3 {[%emt 0:02:59]} f5 {[%emt 0:02:41]} 22. c4 {[%emt 0:05:43]} Rad8 {[%emt 0:05:17]} 23. e5 {[%emt 0:01:30]} Na4 {[%emt 0:00:42]} 24. Rc1 {[%emt 0:03:15]} Rd7 {[%emt 0:02:58]} 25. Nf3 {[%emt 0:01:33]} Be7 {[%emt 0:02:36]} 26. Ng5 {[%emt 0:02:37]} Red8 {[%emt 0:00:39]} 27. Nb3 {[%emt 0:06:15]} Rd3 {[%emt 0:00:43]} 28. Nxe6 {[%emt 0:00:56]} Nxe6 {[%emt 0:00:24]} 29. Bd5 {[%emt 0:02:47]} R3xd5 {[%emt 0:01:49]} 30. cxd5 {[%emt 0:00:04]} Rxd5 {[%emt 0:00:08]} 31. Rfd1 {[%emt 0:01:20]} Nb6 {[%emt 0:02:06]} 32. Rxd5 {[%emt 0:02:06]} Nxd5 {[%emt 0:00:08]} 33. Qf2 {[%emt 0:00:21]} Qb8 {[%emt 0:01:19]} 34. Nd4 {[%emt 0:00:18]} Nxd4 {[%emt 0:04:49]} 35. Qxd4 {[%emt 0:00:02]} Bd8 {[%emt 0:00:24]} 36. Kh1 {[%emt 0:01:23]} Kf7 {[%emt 0:02:13]} 37. b5 {[%emt 0:00:37]} Be7 {[%emt 0:02:43]} 38. bxc6 {[%emt 0:02:31]} bxc6 {[%emt 0:00:09]} 39. e6+ {[%emt 0:00:18]} 1-0

[Event "AUT Bundesliga 2019-20"]
[Site "Linz"]
[Date "2019.10.10"]
[Round "1.1"]
[White "Michalik, Peter"]
[Black "Kunin, Vitaly"]
[Result "1-0"]
[ECO "D21"]
[WhiteElo "2578"]
[BlackElo "2551"]
[Annotator "ChessBase"]
[PlyCount "80"]
[EventDate "2019.10.10"]
[EventType "team-tourn"]
[EventCountry "AUT"]
[SourceTitle "playchess.com"]
[Source "ChessBase"]
[SourceQuality "1"]
[TimeControl "40/5400+30:1800+30"]

1. d4 {[%emt 0:00:00]} d5 {[%emt 0:00:15]} 2. c4 {[%emt 0:00:02]} dxc4 {[%emt 0:00:18]} 3. Nf3 {[%emt 0:00:08]} a6 {[%emt 0:01:09]} 4. e3 {[%emt 0:00:57]} Bg4 {[%emt 0:00:33]} 5. Bxc4 {[%emt 0:00:22]} e6 {[%emt 0:00:08]} 6. Nc3 {[%emt 0:01:22]} Nc6 {[%emt 0:01:15]} 7. O-O {[%emt 0:04:09]} Nf6 {[%emt 0:01:08]} 8. b3 {[%emt 0:00:26]} Bd6 {[%emt 0:00:28]} 9. Bb2 {[%emt 0:00:11]} O-O {[%emt 0:00:51]} 10. Be2 {[%emt 0:02:14]} Qe7 {[%emt 0:01:56]} 11. h3 {[%emt 0:05:46]} Bh5 {[%emt 0:00:15]} 12. Nd2 {[%emt 0:02:08]} Bg6 {[%emt 0:04:47]} 13. Bf3 {[%emt 0:03:55]} Rfd8 {[%emt 0:10:03]} 14. Nce4 {[%emt 0:03:25]} Nxe4 {[%emt 0:01:59]} 15. Nxe4 {[%emt 0:00:56]} Nb4 {[%emt 0:06:55]} 16. Nxd6 {[%emt 0:03:54]} cxd6 {[%emt 0:01:21]} 17. d5 {[%emt 0:03:46]} Nd3 {[%emt 0:08:52]} 18. Ba3 {[%emt 0:00:31]} exd5 {[%emt 0:01:50]} 19. Be2 {[%emt 0:04:30]} Nc5 {[%emt 0:08:55]} 20. Qxd5 {[%emt 0:00:14]} Be4 {[%emt 0:00:13]} 21. Qd4 {[%emt 0:02:06]} Qg5 {[%emt 0:01:46]} 22. g3 {[%emt 0:05:04]} Bc6 {[%emt 0:00:53]} 23. h4 {[%emt 0:03:50]} Qg6 {[%emt 0:06:24]} 24. Qg4 {[%emt 0:03:52]} Qf6 {[%emt 0:04:54]} 25. Rab1 {[%emt 0:06:26]} Nd7 {[%emt 0:01:59]} 26. Qf4 {[%emt 0:03:18]} Qe6 {[%emt 0:04:48]} 27. Kh2 {[%emt 0:09:37]} Ne5 {[%emt 0:01:12]} 28. Rbd1 {[%emt 0:00:09]} Bb5 {[%emt 0:06:42]} 29. Rfe1 {[%emt 0:01:37]} h6 {[%emt 0:00:40]} 30. Bb2 {[%emt 0:03:38]} Rac8 {[%emt 0:04:28]} 31. Bxb5 {[%emt 0:03:19]} axb5 {[%emt 0:00:16]} 32. Re2 {[%emt 0:00:02]} f6 {[%emt 0:03:58]} 33. Kg2 {[%emt 0:02:12]} g5 {[%emt 0:01:45]} 34. Qd4 {[%emt 0:03:28]} Rc5 {[%emt 0:10:51]} 35. f4 {[%emt 0:06:18]} Qg4 {[%emt 0:02:27]} 36. Rf2 {[%emt 0:01:16]} gxf4 {[%emt 0:01:08]} 37. exf4 {[%emt 0:00:42]} Nd7 {[%emt 0:00:21]} 38. Qxd6 {[%emt 0:00:46]} Qf5 {[%emt 0:00:45]} 39. Qe7 {[%emt 0:01:59]} Rcc8 {[%emt 0:00:24]} 40. Rfd2 {[%emt 0:00:00]} Qg4 {[%emt 0:00:00]} 1-0

[Event "AUT Bundesliga 2019-20"]
[Site "Linz"]
[Date "2019.10.10"]
[Round "1.2"]
[White "Juhasz, Kristof"]
[Black "Korpa, Bence"]
[Result "1/2-1/2"]
[ECO "D41"]
[WhiteElo "2438"]
[BlackElo "2560"]
[Annotator "ChessBase"]
[PlyCount "61"]
[EventDate "2019.10.10"]
[EventType "team-tourn"]
[EventCountry "AUT"]
[SourceTitle "playchess.com"]
[Source "ChessBase"]
[SourceQuality "1"]
[TimeControl "40/5400+30:1800+30"]

1. d4 {[%emt 0:00:26]} Nf6 {[%emt 0:00:00]} 2. c4 {[%emt 0:00:23]} e6 {[%emt 0:00:02]} 3. Nf3 {[%emt 0:01:11]} d5 {[%emt 0:00:15]} 4. Nc3 {[%emt 0:00:35]} c5 {[%emt 0:00:16]} 5. cxd5 {[%emt 0:00:35]} Nxd5 {[%emt 0:00:08]} 6. g3 {[%emt 0:01:24]} Nxc3 {[%emt 0:00:39]} 7. bxc3 {[%emt 0:00:10]} cxd4 {[%emt 0:00:05]} 8. cxd4 {[%emt 0:00:18]} Bb4+ {[%emt 0:00:10]} 9. Bd2 {[%emt 0:00:08]} Bxd2+ {[%emt 0:00:07]} 10. Qxd2 {[%emt 0:00:05]} b6 {[%emt 0:00:11]} 11. Bg2 {[%emt 0:00:04]} Bb7 {[%emt 0:00:05]} 12. O-O {[%emt 0:00:08]} O-O {[%emt 0:01:07]} 13. a4 {[%emt 0:00:09]} a5 {[%emt 0:01:57]} 14. Rfc1 {[%emt 0:01:00]} Nd7 {[%emt 0:06:14]} 15. Qb2 {[%emt 0:04:18]} Rc8 {[%emt 0:07:58]} 16. Rxc8 {[%emt 0:04:06]} Qxc8 {[%emt 0:00:12]} 17. Rc1 {[%emt 0:01:03]} Qb8 {[%emt 0:02:27]} 18. Qb5 {[%emt 0:15:04]} Rd8 {[%emt 0:14:16]} 19. Nd2 {[%emt 0:04:29]} h6 {[%emt 0:07:37]} 20. e3 {[%emt 0:04:37]} Rc8 {[%emt 0:10:43]} 21. Rxc8+ {[%emt 0:03:58]} Qxc8 {[%emt 0:00:08]} 22. Bxb7 {[%emt 0:01:04]} Qxb7 {[%emt 0:00:07]} 23. Nc4 {[%emt 0:01:37]} Qd5 {[%emt 0:03:10]} 24. Qxd5 {[%emt 0:06:13]} exd5 {[%emt 0:00:10]} 25. Nd6 {[%emt 0:00:09]} Kf8 {[%emt 0:01:02]} 26. Kf1 {[%emt 0:04:06]} Ke7 {[%emt 0:00:34]} 27. Nf5+ {[%emt 0:01:08]} Kf6 {[%emt 0:01:16]} 28. Nd6 {[%emt 0:00:08]} Ke7 {[%emt 0:14:47]} 29. Nf5+ {[%emt 0:01:26]} Kf6 {[%emt 0:00:10]} 30. Nd6 {[%emt 0:00:14]} Ke7 {[%emt 0:00:06]} 31. Nf5+ 1/2-1/2

[Event "AUT Bundesliga 2019-20"]
[Site "Linz"]
[Date "2019.10.10"]
[Round "1.2"]
[White "Sergeev, Vladimir"]
[Black "Votava, Jan"]
[Result "1/2-1/2"]
[ECO "A46"]
[WhiteElo "2395"]
[BlackElo "2521"]
[Annotator "ChessBase"]
[PlyCount "69"]
[EventDate "2019.10.10"]
[EventType "team-tourn"]
[EventCountry "AUT"]
[SourceTitle "playchess.com"]
[Source "ChessBase"]
[SourceQuality "1"]
[TimeControl "40/5400+30:1800+30"]

1. d4 {[%emt 0:00:00]} Nf6 {[%emt 0:00:00]} 2. Nf3 {[%emt 0:00:00]} d5 {[%emt 0:02:23]} 3. c3 {[%emt 0:00:00]} e6 {[%emt 0:01:16]} 4. Bg5 {[%emt 0:00:39]} h6 {[%emt 0:00:53]} 5. Bh4 {[%emt 0:00:13]} Be7 {[%emt 0:01:12]} 6. Nbd2 {[%emt 0:00:08]} b6 {[%emt 0:02:03]} 7. e3 {[%emt 0:00:07]} Bb7 {[%emt 0:00:19]} 8. Ne5 {[%emt 0:00:42]} Nfd7 {[%emt 0:09:29]} 9. Bxe7 {[%emt 0:03:50]} Qxe7 {[%emt 0:00:24]} 10. Ndf3 {[%emt 0:02:55]} O-O {[%emt 0:02:29]} 11. Bd3 {[%emt 0:00:11]} Nxe5 {[%emt 0:10:01]} 12. Nxe5 {[%emt 0:00:48]} Nc6 {[%emt 0:01:43]} 13. Nxc6 {[%emt 0:03:27]} Bxc6 {[%emt 0:00:59]} 14. Qh5 {[%emt 0:00:09]} f5 {[%emt 0:15:57]} 15. f4 {[%emt 0:04:47]} Be8 {[%emt 0:00:27]} 16. Qh3 {[%emt 0:00:23]} c5 {[%emt 0:00:40]} 17. g4 {[%emt 0:01:11]} Bg6 {[%emt 0:12:26]} 18. Qg3 {[%emt 0:01:31]} Qf7 {[%emt 0:12:24]} 19. Rg1 {[%emt 0:11:04]} cxd4 {[%emt 0:03:12]} 20. cxd4 {[%emt 0:09:32]} Rac8 {[%emt 0:00:05]} 21. g5 {[%emt 0:00:30]} h5 {[%emt 0:08:24]} 22. Rg2 {[%emt 0:09:47]} Qe7 {[%emt 0:01:43]} 23. a3 {[%emt 0:00:21]} Rc7 {[%emt 0:00:29]} 24. Rc2 {[%emt 0:00:42]} Rxc2 {[%emt 0:01:46]} 25. Bxc2 {[%emt 0:02:01]} Rc8 {[%emt 0:01:46]} 26. Qf2 {[%emt 0:05:16]} Be8 {[%emt 0:01:34]} 27. Bd3 {[%emt 0:02:54]} g6 {[%emt 0:02:52]} 28. Qd2 {[%emt 0:00:48]} Kf7 {[%emt 0:02:32]} 29. Rc1 {[%emt 0:02:05]} Rc7 {[%emt 0:00:33]} 30. Rc3 {[%emt 0:00:21]} Qd6 {[%emt 0:00:30]} 31. Qc2 {[%emt 0:00:26]} Rxc3 {[%emt 0:00:25]} 32. Qxc3 {[%emt 0:00:09]} Bd7 {[%emt 0:01:12]} 33. Kd2 {[%emt 0:02:55]} Ke7 {[%emt 0:00:33]} 34. h4 {[%emt 0:01:18]} Kd8 {[%emt 0:00:00]} 35. Be2 {[%emt 0:01:18]} 1/2-1/2

[Event "AUT Bundesliga 2019-20"]
[Site "Linz"]
[Date "2019.10.10"]
[Round "1.2"]
[White "Walter, Stefan"]
[Black "Handler, Lukas"]
[Result "1-0"]
[ECO "D38"]
[WhiteElo "2394"]
[BlackElo "2420"]
[Annotator "NA"]
[PlyCount "125"]
[EventDate "2019.10.10"]
[EventType "team-tourn"]
[EventCountry "AUT"]
[SourceTitle "playchess.com"]
[Source "ChessBase"]
[SourceQuality "1"]
[TimeControl "40/5400+30:1800+30"]

1. d4 {[%emt 0:00:00]} d5 {[%emt 0:00:00]} 2. c4 {[%emt 0:00:00]} e6 {[%emt 0:00:00]} 3. Nc3 {[%emt 0:00:06]} Bb4 {[%emt 0:00:00]} 4. Nf3 {[%emt 0:00:50]} Nf6 {[%emt 0:00:00]} 5. Qa4+ {[%emt 0:01:07]} Nc6 {[%emt 0:00:06]} 6. Ne5 {[%emt 0:00:17]} Bd7 {[%emt 0:01:13]} 7. Nxd7 {[%emt 0:00:29]} Qxd7 {[%emt 0:01:09]} 8. e3 {[%emt 0:06:43]} O-O {[%emt 0:05:22]} 9. a3 {[%emt 0:01:28]} Bxc3+ {[%emt 0:02:09]} 10. bxc3 {[%emt 0:00:07]} a6 {[%emt 0:06:33]} 11. cxd5 {[%emt 0:10:53]} exd5 {[%emt 0:00:46]} 12. Be2 {[%emt 0:15:22]} Rfe8 {[%emt 0:09:28]} 13. c4 {[%emt 0:04:38]} Qf5 {[%emt 0:18:22]} 14. cxd5 {[%emt 0:22:16]} Qxd5 {[%emt 0:03:50]} 15. O-O {[%emt 0:02:37]} Nxd4 {[%emt 0:05:30]} 16. Bc4 {[%emt 0:00:15]} Qc6 {[%emt 0:05:47]} 17. Bxf7+ {[%emt 0:01:54]} Kxf7 {[%emt 0:00:10]} 18. Qxd4 {[%emt 0:00:07]} Rad8 {[%emt 0:00:57]} 19. Qb2 {[%emt 0:04:42]} Ng4 {[%emt 0:07:02]} 20. Qe2 {[%emt 0:04:30]} Ne5 {[%emt 0:02:58]} 21. Bb2 {[%emt 0:02:08]} Nc4 {[%emt 0:03:05]} 22. Rac1 {[%emt 0:02:42]} b5 {[%emt 0:00:07]} 23. Qg4 {[%emt 0:00:57]} Qg6 {[%emt 0:03:20]} 24. Rxc4 {[%emt 0:00:50]} bxc4 {[%emt 0:00:09]} 25. Qxc4+ {[%emt 0:00:06]} Kf8 {[%emt 0:00:49]} 26. Bd4 {[%emt 0:04:05]} Qe6 {[%emt 0:10:01]} 27. Qxc7 {[%emt 0:00:17]} Rd7 {[%emt 0:00:11]} 28. Qc5+ {[%emt 0:01:25]} Kg8 {[%emt 0:00:04]} 29. h3 {[%emt 0:01:44]} Rd5 {[%emt 0:01:03]} 30. Qc7 {[%emt 0:00:57]} Rd7 {[%emt 0:01:42]} 31. Qc3 {[%emt 0:01:12]} Rf7 {[%emt 0:01:14]} 32. Rc1 {[%emt 0:03:33]} Qf5 {[%emt 0:03:43]} 33. f3 {[%emt 0:00:26]} h6 {[%emt 0:00:30]} 34. Qc4 {[%emt 0:01:28]} Qe6 {[%emt 0:00:53]} 35. Qd3 {[%emt 0:02:55]} Rc8 {[%emt 0:02:43]} 36. Rb1 {[%emt 0:01:20]} Qc4 {[%emt 0:01:33]} 37. Qxc4 {[%emt 0:02:59]} Rxc4 {[%emt 0:00:03]} 38. Rb6 {[%emt 0:00:31]} Ra4 {[%emt 0:01:15]} 39. Bc5 {[%emt 0:00:53]} Rc4 {[%emt 0:00:08]} 40. Bd4 {[%emt 0:00:00]} Ra4 {[%emt 0:00:00]} 41. Rb3 {[%emt 0:01:50]} Rc7 {[%emt 0:02:38]} 42. f4 {[%emt 0:00:25]} Ra5 {[%emt 0:03:43]} 43. Kf2 {[%emt 0:02:04]} g5 {[%emt 0:04:24]} 44. Kf3 {[%emt 0:02:51]} Kf7 {[%emt 0:03:47]} 45. Rb6 {[%emt 0:04:21]} gxf4 {[%emt 0:02:41]} 46. Rxh6 {[%emt 0:02:19]} Rc2 {[%emt 0:01:03]} 47. Rf6+ {[%emt 0:00:19]} Ke7 {[%emt 0:00:55]} 48. Rxf4 {[%emt 0:00:06]} Rxa3 {[%emt 0:00:07]} 49. h4 {[%emt 0:00:20]} Raa2 {[%emt 0:01:10]} 50. Re4+ {[%emt 0:00:34]} Kf7 {[%emt 0:00:40]} 51. g4 {[%emt 0:01:11]} Rf2+ {[%emt 0:02:16]} 52. Kg3 {[%emt 0:00:05]} a5 {[%emt 0:01:44]} 53. h5 {[%emt 0:00:38]} a4 {[%emt 0:00:44]} 54. Re5 {[%emt 0:01:10]} a3 {[%emt 0:02:47]} 55. Ra5 {[%emt 0:00:14]} Rg2+ {[%emt 0:00:57]} 56. Kf4 {[%emt 0:06:45]} Raf2+ {[%emt 0:01:21]} 57. Kg5 {[%emt 0:00:13]} Rf3 {[%emt 0:06:03]} 58. h6 {[%emt 0:02:02]} Rfg3 {[%emt 0:00:42]} 59. h7 {[%emt 0:04:04]} Rxg4+ {[%emt 0:00:06]} 60. Kf5 {[%emt 0:00:41]} Rg5+ {[%emt 0:02:58]} 61. Ke4 {[%emt 0:02:01]} R2g4+ {[%emt 0:00:15]} 62. Kf3 {[%emt 0:01:59]} Rxd4 {[%emt 0:00:54]} 63. Ra7+ {[%emt 0:01:01] Re4 Kxe4+} 1-0

[Event "AUT Bundesliga 2019-20"]
[Site "Linz"]
[Date "2019.10.10"]
[Round "1.3"]
[White "Ruck, Robert"]
[Black "Juhasz, Armin"]
[Result "1/2-1/2"]
[ECO "A06"]
[WhiteElo "2530"]
[BlackElo "2387"]
[Annotator "ChessBase"]
[PlyCount "62"]
[EventDate "2019.10.10"]
[EventType "team-tourn"]
[EventCountry "AUT"]
[SourceTitle "playchess.com"]
[Source "ChessBase"]
[SourceQuality "1"]
[TimeControl "40/5400+30:1800+30"]

1. Nf3 {[%emt 0:00:00]} d5 {[%emt 0:00:00]} 2. g3 {[%emt 0:00:40]} g6 {[%emt 0:00:06]} 3. c4 {[%emt 0:00:19]} c6 {[%emt 0:00:23]} 4. Qa4 {[%emt 0:00:20]} d4 {[%emt 0:03:12]} 5. b4 {[%emt 0:02:06]} Bg7 {[%emt 0:01:10]} 6. Bb2 {[%emt 0:03:26]} e5 {[%emt 0:03:24]} 7. d3 {[%emt 0:00:06]} Ne7 {[%emt 0:01:57]} 8. Nbd2 {[%emt 0:02:21]} O-O {[%emt 0:04:06]} 9. Bg2 {[%emt 0:00:04]} Bf5 {[%emt 0:04:00]} 10. Ng5 {[%emt 0:15:32]} Nd7 {[%emt 0:04:25]} 11. Nb3 {[%emt 0:03:14]} Qc7 {[%emt 0:06:09]} 12. O-O {[%emt 0:03:04]} Nf6 {[%emt 0:06:41]} 13. Nf3 {[%emt 0:16:45]} Rfe8 {[%emt 0:05:15]} 14. Rfc1 {[%emt 0:07:40]} Nd7 {[%emt 0:03:07]} 15. Nfd2 {[%emt 0:02:42]} Bg4 {[%emt 0:04:06]} 16. Re1 {[%emt 0:00:21]} Nc8 {[%emt 0:05:45]} 17. c5 {[%emt 0:07:38]} Be6 {[%emt 0:04:18]} 18. b5 {[%emt 0:08:09]} Ne7 {[%emt 0:02:43]} 19. Rac1 {[%emt 0:03:35]} Bd5 {[%emt 0:04:22]} 20. Ne4 {[%emt 0:06:56]} Nf5 {[%emt 0:07:53]} 21. Ba3 {[%emt 0:01:56]} Bf8 {[%emt 0:03:57]} 22. Na5 {[%emt 0:03:34]} Reb8 {[%emt 0:08:28]} 23. Rc2 {[%emt 0:06:44]} Be7 {[%emt 0:05:14]} 24. Rec1 {[%emt 0:00:30]} a6 {[%emt 0:04:22]} 25. bxc6 {[%emt 0:00:30]} bxc6 {[%emt 0:00:20]} 26. Nd6 {[%emt 0:03:22]} Bxg2 {[%emt 0:00:33]} 27. Kxg2 {[%emt 0:00:22]} Rb5 {[%emt 0:00:57]} 28. Nxf5 {[%emt 0:00:35]} gxf5 {[%emt 0:00:08]} 29. Nb3 {[%emt 0:00:12]} Nf6 {[%emt 0:01:31]} 30. Bb4 {[%emt 0:00:26]} Qd7 {[%emt 0:02:29]} 31. Bd2 {[%emt 0:00:30]} a5 {[%emt 0:01:43]} 1/2-1/2

[Event "AUT Bundesliga 2019-20"]
[Site "Linz"]
[Date "2019.10.10"]
[Round "1.3"]
[White "Kreisl, Robert"]
[Black "Kessler, Luca"]
[Result "1/2-1/2"]
[ECO "A40"]
[WhiteElo "2391"]
[BlackElo "2440"]
[Annotator "NA"]
[PlyCount "53"]
[EventDate "2019.10.10"]
[EventType "team-tourn"]
[EventCountry "AUT"]
[SourceTitle "playchess.com"]
[Source "ChessBase"]
[SourceQuality "1"]
[TimeControl "40/5400+30:1800+30"]

1. d4 {[%emt 0:00:12]} g6 {[%emt 0:00:29]} 2. Nf3 {[%emt 0:05:13]} Bg7 {[%emt 0:00:07]} 3. e4 {[%emt 0:01:41]} d6 {[%emt 0:06:08]} 4. Be3 {[%emt 0:00:05]} Nf6 {[%emt 0:13:57]} 5. Nc3 {[%emt 0:00:21]} O-O {[%emt 0:00:17]} 6. Qd2 {[%emt 0:05:37]} a6 {[%emt 0:04:53]} 7. Bh6 {[%emt 0:04:09]} b5 {[%emt 0:00:20]} 8. Bxg7 {[%emt 0:00:31]} Kxg7 {[%emt 0:00:06]} 9. Bd3 {[%emt 0:00:28]} Bb7 {[%emt 0:13:10]} 10. e5 {[%emt 0:05:10]} Nd5 {[%emt 0:01:35]} 11. Ne4 {[%emt 0:05:35]} Nc6 {[%emt 0:08:45]} 12. h4 {[%emt 0:09:05]} h5 {[%emt 0:01:18]} 13. g4 {[%emt 0:21:38]} hxg4 {[%emt 0:05:15]} 14. h5 {[%emt 0:01:02]} gxf3 {[%emt 0:07:45]} 15. hxg6 {[%emt 0:02:07]} Rh8 {[%emt 0:00:29]} 16. O-O-O {[%emt 0:00:26]} Nxd4 {[%emt 0:25:04]} 17. gxf7 {[%emt 0:09:27]} e6 {[%emt 0:02:19]} 18. exd6 {[%emt 0:01:43]} Kxf7 {[%emt 0:01:09]} 19. Ng5+ {[%emt 0:02:49]} Kf6 {[%emt 0:00:10]} 20. Ne4+ {[%emt 0:10:38]} Kf7 {[%emt 0:03:31]} 21. Ng5+ {[%emt 0:04:31]} Kf6 {[%emt 0:00:04]} 22. Nh7+ {[%emt 0:01:56]} Ke5 {[%emt 0:00:10]} 23. Ng5 {[%emt 0:03:42]} Kf6 {[%emt 0:02:45]} 24. Ne4+ {[%emt 0:02:13]} Kf7 {[%emt 0:00:07]} 25. Ng5+ {[%emt 0:01:10]} Kf6 {[%emt 0:00:05]} 26. Ne4+ {[%emt 0:00:43]} Kf7 {[%emt 0:00:06]} 27. Ng5+ {[%emt 0:00:34]} 1/2-1/2

[Event "AUT Bundesliga 2019-20"]
[Site "Linz"]
[Date "2019.10.10"]
[Round "1.3"]
[White "Miesbauer, Jan"]
[Black "Dobosz, Henryk"]
[Result "1-0"]
[ECO "D11"]
[WhiteElo "2390"]
[BlackElo "2409"]
[Annotator "NA"]
[PlyCount "69"]
[EventDate "2019.10.10"]
[EventType "team-tourn"]
[EventCountry "AUT"]
[SourceTitle "playchess.com"]
[Source "ChessBase"]
[SourceQuality "1"]
[TimeControl "40/5400+30:1800+30"]

1. d4 {[%emt 0:00:00]} d5 {[%emt 0:00:01]} 2. c4 {[%emt 0:00:00]} c6 {[%emt 0:00:15]} 3. Nf3 {[%emt 0:00:17]} Nf6 {[%emt 0:01:03]} 4. Qc2 {[%emt 0:00:28]} dxc4 {[%emt 0:03:09]} 5. Qxc4 {[%emt 0:00:26]} Bg4 {[%emt 0:01:09]} 6. Nbd2 {[%emt 0:03:02]} e6 {[%emt 0:00:55]} 7. g3 {[%emt 0:01:05]} Nbd7 {[%emt 0:03:41]} 8. Bg2 {[%emt 0:00:25]} Be7 {[%emt 0:01:09]} 9. O-O {[%emt 0:01:26]} O-O {[%emt 0:00:15]} 10. b3 {[%emt 0:03:23]} Qa5 {[%emt 0:03:04]} 11. h3 {[%emt 0:07:07]} Bh5 {[%emt 0:14:10]} 12. Bb2 {[%emt 0:02:59]} Rac8 {[%emt 0:00:46]} 13. Rfd1 {[%emt 0:15:26]} Rfd8 {[%emt 0:00:44]} 14. a3 {[%emt 0:08:08]} b5 {[%emt 0:06:15]} 15. Qc3 {[%emt 0:02:06]} Qc7 {[%emt 0:15:14]} 16. Rac1 {[%emt 0:02:55]} Bg6 {[%emt 0:10:40]} 17. b4 {[%emt 0:07:04]} a5 {[%emt 0:01:09]} 18. bxa5 {[%emt 0:01:34]} Nd5 {[%emt 0:00:35]} 19. Qb3 {[%emt 0:00:17]} Qxa5 {[%emt 0:00:10]} 20. Ne1 {[%emt 0:04:54]} N7b6 {[%emt 0:04:21]} 21. e4 {[%emt 0:02:55]} Nf6 {[%emt 0:00:23]} 22. Nd3 {[%emt 0:06:58]} Na4 {[%emt 0:01:04]} 23. Nb4 {[%emt 0:02:36]} c5 {[%emt 0:10:26]} 24. dxc5 {[%emt 0:00:59]} Nxb2 {[%emt 0:03:12]} 25. Qxb2 {[%emt 0:00:21]} Bxc5 {[%emt 0:01:05]} 26. Nb3 {[%emt 0:03:24]} Rxd1+ {[%emt 0:03:33]} 27. Rxd1 {[%emt 0:00:06]} Qa8 {[%emt 0:04:06]} 28. Nxc5 {[%emt 0:04:20]} Rxc5 {[%emt 0:00:07]} 29. e5 {[%emt 0:03:33]} Nd5 {[%emt 0:00:55]} 30. Nxd5 {[%emt 0:03:01]} exd5 {[%emt 0:00:12]} 31. Qb4 {[%emt 0:03:49]} Qc6 {[%emt 0:05:41]} 32. Qd4 {[%emt 0:01:19]} Rc1 {[%emt 0:00:48]} 33. Bxd5 {[%emt 0:01:56]} Qc2 {[%emt 0:00:08]} 34. Bxf7+ {[%emt 0:02:39]} Kf8 {[%emt 0:00:50]} 35. Qb4+ {[%emt 0:00:18]} 1-0

[Event "AUT Bundesliga 2019-20"]
[Site "Linz"]
[Date "2019.10.10"]
[Round "1.4"]
[White "Hess, Max"]
[Black "Platzgummer, Fabian"]
[Result "1-0"]
[ECO "B52"]
[WhiteElo "2373"]
[BlackElo "2327"]
[Annotator "NA"]
[PlyCount "49"]
[EventDate "2019.10.10"]
[EventType "team-tourn"]
[EventCountry "AUT"]
[SourceTitle "playchess.com"]
[Source "ChessBase"]
[SourceQuality "1"]
[TimeControl "40/5400+30:1800+30"]

1. e4 {[%emt 0:00:00]} c5 {[%emt 0:00:00]} 2. Nf3 {[%emt 0:00:00]} d6 {[%emt 0:01:46]} 3. Bb5+ {[%emt 0:00:00]} Bd7 {[%emt 0:00:20]} 4. Bxd7+ {[%emt 0:00:05]} Qxd7 {[%emt 0:00:08]} 5. c4 {[%emt 0:00:14]} Nf6 {[%emt 0:00:34]} 6. Nc3 {[%emt 0:00:07]} g6 {[%emt 0:00:25]} 7. d4 {[%emt 0:00:16]} cxd4 {[%emt 0:00:20]} 8. Nxd4 {[%emt 0:00:04]} Bg7 {[%emt 0:00:09]} 9. h3 {[%emt 0:00:21]} O-O {[%emt 0:01:44]} 10. O-O {[%emt 0:05:17]} Rc8 {[%emt 0:01:21]} 11. b3 {[%emt 0:00:32]} Nc6 {[%emt 0:00:30]} 12. Be3 {[%emt 0:01:03]} Qd8 {[%emt 0:12:20]} 13. Rc1 {[%emt 0:02:16]} Qa5 {[%emt 0:08:40]} 14. Re1 {[%emt 0:03:08]} a6 {[%emt 0:09:39]} 15. Qd3 {[%emt 0:22:21]} Nb4 {[%emt 0:13:16]} 16. Qe2 {[%emt 0:07:09]} b5 {[%emt 0:19:12]} 17. cxb5 {[%emt 0:06:33]} Rxc3 {[%emt 0:00:41]} 18. Rxc3 {[%emt 0:00:30]} Nxe4 {[%emt 0:00:10]} 19. Rcc1 {[%emt 0:10:10]} Nxa2 {[%emt 0:02:24]} 20. Ra1 {[%emt 0:04:46]} Nec3 {[%emt 0:04:22]} 21. Qf3 {[%emt 0:04:48]} d5 {[%emt 0:02:02]} 22. Nc6 {[%emt 0:05:21]} Qxb5 {[%emt 0:02:25]} 23. Nxe7+ {[%emt 0:02:15]} Kf8 {[%emt 0:01:53]} 24. Nxd5 {[%emt 0:02:48]} Rd8 {[%emt 0:05:06]} 25. Nc7 {[%emt 0:01:20]} 1-0